fUST/lending_fUST_20241231
["ID","MTS","AMOUNT","RATE_DAILY","PERIOD"]
[347263065,1735644662803,-500.0,0.00021369,3]
[347263066,1735644662811,-500.0,0.00021369,3]
[347263067,1735644662821,-151.0,0.00021535,7]
[347263068,1735644662830,-169.318085,0.00021543,2]
[347263069,1735644662839,-500.0,0.00021643,3]
[347263070,1735644662848,-500.0,0.00021643,3]
[347263071,1735644662857,-500.0,0.00021643,3]
[347263072,1735644662866,-588.93,0.00021643,3]
[347263073,1735644662875,-500.81399589,0.00021643,2]
[347263074,1735644662884,-500.0,0.00021643,2]
[347263075,1735644662893,-500.0,0.00021643,3]
[347263076,1735644662903,-5175.86,0.00021643,3]
[347263077,1735644662912,-3542.24,0.00021643,3]
[347263078,1735644662921,-523.16,0.00021643,3]
[347263079,1735644662930,-500.0,0.00021643,3]
[347263080,1735644662939,-401.92855892,0.00021643,3]
[347263081,1735644662949,-500.0,0.00021643,3]
[347263082,1735644662959,-500.0,0.00021643,3]
[347263083,1735644662969,-500.0,0.00021643,3]
[347263084,1735644662978,-500.0,0.00021643,3]
[347263085,1735644662988,-3217.11,0.00021643,3]
[347263086,1735644663005,-572.07,0.00021643,3]
[347263087,1735644663018,-962.87,0.00021643,3]
[347263088,1735644663029,-500.0,0.00021643,3]
[347263089,1735644663042,-970.42,0.00021643,3]
[347263090,1735644663053,-869.12,0.00021643,3]
[347263091,1735644663063,-151.0,0.00021643,2]
[347263092,1735644663073,-520.5,0.00021643,3]
[347263093,1735644663083,-856.3,0.00021643,3]
[347263094,1735644663093,-500.0,0.00021643,3]
[347263095,1735644663103,-500.0,0.00021643,3]
[347263096,1735644663114,-500.0,0.00021643,3]
[347263097,1735644663125,-2200.44,0.00021643,3]
[347263098,1735644663135,-500.0,0.00021643,3]
[347263099,1735644663144,-500.0,0.00021643,3]
[347263100,1735644663154,-504.99,0.00021643,3]
[347263101,1735644663165,-500.0,0.00021643,3]
[347263102,1735644663175,-1120.23,0.00021643,3]
[347263103,1735644663185,-27682.99,0.00021643,3]
[347263104,1735644663195,-1324.56,0.00021643,3]
[347263105,1735644663205,-500.0,0.00021643,3]
[347263106,1735644663216,-454.08228084,0.00021643,3]
[347263107,1735644663225,-500.0,0.00021643,3]
[347263108,1735644663235,-667.91,0.00021643,3]
[347263109,1735644663245,-707.23,0.00021643,3]
[347263110,1735644663256,-1252.13,0.00021643,3]
[347263111,1735644663266,-1158.84,0.00021643,3]
[347263112,1735644663276,-3499.98,0.00021643,3]
[347263113,1735644663287,-1150.55,0.00021643,3]
[347263114,1735644663297,-500.0,0.00021643,3]
[347263115,1735644663307,-500.0,0.00021643,3]
[347263116,1735644663316,-500.0,0.00021643,3]
[347263117,1735644663326,-6767.22,0.00021643,3]
[347263118,1735644663336,-787.31,0.00021643,3]
[347263119,1735644663346,-713.78,0.00021643,3]
[347263120,1735644663356,-500.0,0.00021643,3]
[347263121,1735644663366,-500.0,0.00021643,3]
[347263122,1735644663375,-499.0,0.00021643,4]
[347263123,1735644663385,-770.95,0.00021643,3]
[347263124,1735644663395,-2120.53,0.00021643,3]
[347263125,1735644663404,-2783.6,0.00021643,3]
[347263126,1735644663414,-959.18,0.00021643,3]
[347263127,1735644663423,-500.0,0.00021643,3]
[347263128,1735644663433,-1587.35,0.00021643,3]
[347263129,1735644663442,-1223.81,0.00021643,3]
[347263130,1735644663453,-500.0,0.00021643,3]
[347263131,1735644663462,-500.0,0.00021643,3]
[347263132,1735644663472,-500.0,0.00021643,3]
[347263133,1735644663482,-1337.53,0.00021643,3]
[347263134,1735644663491,-663.4,0.00021643,3]
[347263135,1735644663502,-963.03,0.00021643,3]
[347263136,1735644663618,-500.0,0.00021643,3]
[347263137,1735644663628,-500.0,0.00021643,3]
[347263138,1735644663638,-500.44846452,0.00021646,2]
[347263139,1735644663647,-500.58497714,0.0002173,2]
[347263140,1735644663657,-151.0,0.00021741,7]
[347263141,1735644663667,-1849.999998,0.00021852,2]
[347263142,1735644663677,-500.0,0.00021917,3]
[347263143,1735644663686,-500.0,0.00021917,3]
[347263144,1735644663696,-680.61,0.00021917,2]
[347263145,1735644663705,-680.61,0.00021917,3]
[347263146,1735644663715,-680.61,0.00021917,3]
[347263147,1735644663724,-680.61,0.00021917,3]
[347263148,1735644663734,-680.61,0.00021917,3]
[347263149,1735644663743,-680.61,0.00021917,3]
[347263150,1735644663755,-680.61,0.00021917,3]
[347263151,1735644663765,-680.61,0.00021917,3]
[347263152,1735644663774,-680.61,0.00021917,3]
[347263153,1735644663784,-680.61,0.00021917,3]
[347263154,1735644663794,-680.61,0.00021917,3]
[347263155,1735644663803,-577.1198842,0.00021917,3]
[347263156,1735644663812,-500.0,0.00021917,2]
[347263157,1735644663822,-500.0,0.00021917,3]
[347263158,1735644663831,-5175.86,0.00021917,3]
[347263159,1735644663841,-3542.24,0.00021917,3]
[347263160,1735644663851,-523.16,0.00021917,3]
[347263161,1735644663860,-1000.0,0.00021917,5]
[347263162,1735644663869,-1000.0,0.00021917,5]
[347263163,1735644663879,-1000.0,0.00021917,5]
[347263164,1735644663888,-1000.0,0.00021917,5]
[347263165,1735644663897,-897.16489242,0.00021917,5]
[347263166,1735644663907,-500.0,0.00021917,3]
[347263167,1735644663916,-500.0,0.00021917,3]
[347263168,1735644663925,-385.39018529,0.00021917,3]
[347263169,1735644663935,-500.0,0.00021917,3]
[347263170,1735644663944,-500.0,0.00021917,3]
[347263171,1735644663954,-3217.11,0.00021917,3]
[347263172,1735644663963,-411.30553655,0.00021917,2]
[347263173,1735644663973,-962.87,0.00021917,3]
[347263174,1735644663982,-500.0,0.00021917,3]
[347263175,1735644663992,-970.42,0.00021917,3]
[347263176,1735644664002,-869.12,0.00021917,3]
[347263177,1735644664012,-520.5,0.00021917,3]
[347263178,1735644664021,-856.3,0.00021917,3]
[347263179,1735644664035,-500.0,0.00021917,3]
[347263180,1735644664044,-500.0,0.00021917,3]
[347263181,1735644664054,-500.0,0.00021917,3]
[347263182,1735644664063,-2200.44,0.00021917,3]
[347263183,1735644664073,-500.0,0.00021917,3]
[347263184,1735644664082,-151.0,0.00021917,2]
[347263185,1735644664092,-500.0,0.00021917,3]
[347263186,1735644664102,-504.99,0.00021917,3]
[347263187,1735644664113,-500.0,0.00021917,3]
[347263188,1735644664122,-1120.23,0.00021917,3]
[347263189,1735644664131,-27682.99,0.00021917,3]
[347263190,1735644664141,-1324.56,0.00021917,3]
[347263191,1735644664150,-500.0,0.00021917,3]
[347263192,1735644664160,-500.0,0.00021917,3]
[347263193,1735644664170,-667.91,0.00021917,3]
[347263194,1735644664178,-707.23,0.00021917,3]
[347263195,1735644664188,-1252.13,0.00021917,3]
[347263196,1735644664199,-151.0,0.00021917,2]
[347263197,1735644664208,-1158.84,0.00021917,3]
[347263198,1735644664218,-3499.98,0.00021917,3]
[347263199,1735644664227,-1150.55,0.00021917,3]
[347263200,1735644664237,-500.0,0.00021917,3]
[347263201,1735644664246,-500.0,0.00021917,3]
[347263202,1735644664257,-500.0,0.00021917,3]
[347263203,1735644664267,-787.31,0.00021917,3]
[347263204,1735644664277,-6767.22,0.00021917,3]
[347263205,1735644664287,-713.78,0.00021917,3]
[347263206,1735644664296,-500.0,0.00021917,3]
[347263207,1735644664307,-151.0,0.00021917,2]
[347263208,1735644664317,-151.0,0.00021917,2]
[347263209,1735644664326,-500.0,0.00021917,3]
[347263210,1735644664336,-770.95,0.00021917,3]
[347263211,1735644664345,-2120.53,0.00021917,3]
[347263212,1735644664355,-2783.6,0.00021917,3]
[347263213,1735644664365,-959.18,0.00021917,3]
[347263214,1735644664374,-500.0,0.00021917,3]
[347263215,1735644664384,-1587.35,0.00021917,3]
[347263216,1735644664393,-1223.81,0.00021917,3]
[347263217,1735644664402,-500.0,0.00021917,3]
[347263218,1735644664412,-500.0,0.00021917,3]
[347263219,1735644664421,-500.0,0.00021917,3]
[347263220,1735644664431,-1337.53,0.00021917,3]
[347263221,1735644664441,-663.4,0.00021917,3]
[347263222,1735644664450,-963.03,0.00021917,3]
[347263223,1735644664460,-500.0,0.00021917,3]
[347263224,1735644664469,-500.0,0.00021917,3]
[347263225,1735644664479,-1282.9228758,0.00021918,7]
[347263226,1735644664489,-219.00326663,0.00021918,10]
[347263227,1735644664502,-500.0,0.00021918,10]
[347263228,1735644664512,-150.2,0.00021918,2]
[347263229,1735644664522,-10000.0,0.00022,3]
[347263230,1735644664533,-1260.94406286,0.00022,15]
[347263231,1735644664542,-120651.6898103,0.00022,10]
[347263232,1735644664551,-11841.46608862,0.00022,15]
[347263233,1735644664561,-161.67129737,0.00022,10]
[347263234,1735644664570,-192.23,0.00022,2]
[347263235,1735644664580,-1000.0,0.00022,2]
[347263236,1735644664589,-34972.06051902,0.00022,2]
[347263237,1735644664599,-5000.0,0.00022,2]
[347263238,1735644664608,-151.0,0.00022,7]
[347263239,1735644664617,-150.0,0.00022,2]
[347263240,1735644664627,-772.380737,0.00022,7]
[347263241,1735644664636,-772.380737,0.00022,7]
[347263242,1735644664646,-605.0,0.00022,2]
[347263243,1735644664655,-2825.68185604,0.0002201,16]
[347263244,1735644664664,-151.0,0.00022036,7]
[347263245,1735644664673,-5164.75756255,0.00022036,7]
[347263246,1735644664682,-5164.75756255,0.00022036,7]
[347263247,1735644664692,-151.0,0.00022046,7]
[347263248,1735644664701,-151.0,0.00022046,7]
[347263249,1735644664711,-151.0,0.00022046,7]
[347263250,1735644664720,-151.0,0.00022046,7]
[347263251,1735644664729,-151.0,0.00022046,7]
[347263252,1735644664738,-152.85006,0.00022046,7]
[347263253,1735644664749,-151.0,0.00022046,7]
[347263254,1735644664758,-151.0,0.00022046,7]
[347263255,1735644664768,-151.0,0.00022046,7]
[347263256,1735644664777,-151.0,0.00022046,7]
[347263257,1735644664786,-151.0,0.00022046,7]
[347263258,1735644664796,-151.0,0.00022046,7]
[347263259,1735644664806,-250.761245,0.00022046,7]
[347263260,1735644664815,-169.318085,0.00022055,2]
[347263261,1735644664825,-151.0,0.00022104,7]
[347263262,1735644664834,-245.329386,0.00022104,7]
[347263263,1735644664843,-772.380737,0.00022104,7]
[347263264,1735644664852,-772.380737,0.00022104,7]
[347263265,1735644664862,-772.380737,0.00022104,7]
[347263266,1735644664871,-772.380737,0.00022104,7]
[347263267,1735644664881,-772.380737,0.00022104,7]
[347263268,1735644664890,-772.380737,0.00022104,7]
[347263269,1735644664899,-772.380737,0.00022104,7]
[347263270,1735644664908,-772.380737,0.00022104,7]
[347263271,1735644664917,-772.380737,0.00022104,7]
[347263272,1735644664926,-772.380737,0.00022104,7]
[347263273,1735644664936,-772.380737,0.00022104,7]
[347263274,1735644664945,-772.380742,0.00022104,7]
[347263275,1735644664954,-151.0,0.00022104,7]
[347263276,1735644664963,-151.0,0.00022104,7]
[347263277,1735644664973,-151.0,0.00022104,7]
[347263278,1735644664982,-151.0,0.00022104,7]
[347263279,1735644664991,-151.0,0.00022104,7]
[347263280,1735644665001,-151.0,0.00022104,7]
[347263281,1735644665010,-151.0,0.00022104,7]
[347263282,1735644665019,-151.0,0.00022104,7]
[347263283,1735644665029,-151.0,0.00022104,7]
[347263284,1735644665041,-151.0,0.00022104,7]
[347263285,1735644665050,-151.0,0.00022104,7]
[347263286,1735644665059,-228.703362,0.00022104,7]
[347263287,1735644665069,-151.0,0.00022104,7]
[347263288,1735644665078,-151.0,0.00022104,7]
[347263289,1735644665087,-151.0,0.00022104,7]
[347263290,1735644665096,-151.0,0.00022104,7]
[347263291,1735644665105,-151.0,0.00022104,7]
[347263292,1735644665114,-166.751892,0.00022104,7]
[347263293,1735644665123,-151.0,0.00022104,7]
[347263294,1735644665132,-151.0,0.00022104,7]
[347263295,1735644665141,-1587642.38747928,0.00022104,10]
[347263296,1735644665303,-89.27021108,0.00022104,10]
[347263297,1735644665313,-189387.97297274,0.00022104,10]
[347263298,1735644665422,-1579.94525756,0.00022104,10]
[347263299,1735644665433,-52947.79400414,0.00022104,10]
[347263300,1735644665452,-501.00439745,0.00019178,2]
[347263301,1735644665462,-611105.64856573,0.00022104,10]
[347263302,1735644665579,-2046.06026502,0.00018986,2]
[347263303,1735644665593,-277.59,0.00018986,2]
[347263306,1735644739473,-286.58079423,0.00018796,2]
[347263307,1735644739500,-6055.23640969,0.00018986,2]
[347263308,1735644739525,-300.0,0.00019176,2]
[347263309,1735644739549,-500.0,0.00019177,2]
[347263310,1735644739574,-500.0,0.00019177,2]
[347263311,1735644739597,-500.0,0.00019177,2]
[347263312,1735644739695,-500.0,0.00019177,2]
[347263313,1735644739718,-500.0,0.00019177,2]
[347263314,1735644739741,-500.0,0.00019177,2]
[347263315,1735644739763,-500.0,0.00019177,2]
[347263316,1735644739784,-500.0,0.00019177,2]
[347263317,1735644739808,-500.0,0.00019177,2]
[347263318,1735644739831,-500.0,0.00019177,2]
[347263319,1735644739853,-500.0,0.00019177,2]
[347263320,1735644739875,-500.0,0.00019177,2]
[347263321,1735644739899,-500.0,0.00019177,2]
[347263322,1735644739921,-500.0,0.00019177,2]
[347263323,1735644739944,-500.0,0.00019177,2]
[347263324,1735644739966,-500.0,0.00019177,2]
[347263325,1735644739988,-500.0,0.00019177,2]
[347263326,1735644740011,-500.0,0.00019177,2]
[347263327,1735644740034,-500.0,0.00019177,2]
[347263328,1735644740061,-500.0,0.00019177,2]
[347263329,1735644740085,-500.0,0.00019177,2]
[347263330,1735644740110,-594.83845844,0.00019177,2]
[347263331,1735644740135,-500.0,0.00019177,2]
[347263332,1735644740161,-500.0,0.00019177,2]
[347263333,1735644740190,-300.0,0.00019177,2]
[347263334,1735644740216,-499.99999999,0.00019177,2]
[347263335,1735644740239,-500.0,0.00019177,2]
[347263336,1735644740263,-500.0,0.00019177,2]
[347263337,1735644740286,-500.0,0.00019177,2]
[347263338,1735644740309,-500.0,0.00019177,2]
[347263339,1735644740332,-500.0,0.00019177,2]
[347263340,1735644740357,-500.0,0.00019177,2]
[347263341,1735644740381,-500.0,0.00019177,2]
[347263342,1735644740405,-500.0,0.00019177,2]
[347263343,1735644740428,-176.98807356,0.00019177,2]
[347263344,1735644740452,-500.0,0.00019177,2]
[347263345,1735644740476,-500.0,0.00019177,2]
[347263346,1735644740500,-500.0,0.00019177,2]
[347263347,1735644740523,-500.0,0.00019177,2]
[347263348,1735644740550,-500.0,0.00019177,2]
[347263349,1735644740573,-500.0,0.00019177,2]
[347263350,1735644740597,-500.0,0.00019177,2]
[347263351,1735644740622,-340.44221915,0.00019177,2]
[347263352,1735644740644,-500.0,0.00019177,2]
[347263353,1735644740668,-500.0,0.00019177,2]
[347263354,1735644740691,-500.0,0.00019177,2]
[347263355,1735644740714,-500.0,0.00019177,2]
[347263356,1735644740738,-500.0,0.00019177,2]
[347263357,1735644740762,-500.0,0.00019177,2]
[347263358,1735644740786,-500.0,0.00019177,2]
[347263359,1735644740811,-500.0,0.00019177,2]
[347263360,1735644740833,-500.0,0.00019177,2]
[347263361,1735644740856,-500.0,0.00019177,2]
[347263362,1735644740878,-500.0,0.00019177,2]
[347263363,1735644740901,-300.0,0.00019177,2]
[347263364,1735644740925,-500.0,0.00019177,2]
[347263365,1735644740952,-500.0,0.00019177,2]
[347263366,1735644740976,-500.0,0.00019177,2]
[347263367,1735644740999,-500.0,0.00019177,2]
[347263368,1735644741023,-500.0,0.00019177,2]
[347263369,1735644741047,-650.0,0.00019177,2]
[347263370,1735644741075,-678.64,0.00019178,2]
[347263371,1735644741098,-678.64,0.00019178,2]
[347263372,1735644741122,-502.85146574,0.00019178,2]
[347263373,1735644741146,-678.64,0.00019178,2]
[347263374,1735644741170,-678.64,0.00019178,2]
[347263375,1735644741258,-678.64,0.00019178,2]
[347263376,1735644741283,-678.64,0.00019178,2]
[347263377,1735644741308,-500.0,0.00019178,2]
[347263378,1735644741339,-678.64,0.00019178,2]
[347263379,1735644741364,-678.64,0.00019178,2]
[347263380,1735644741390,-678.64,0.00019178,2]
[347263381,1735644741417,-678.64,0.00019178,2]
[347263382,1735644741444,-678.64,0.00019178,2]
[347263383,1735644741468,-678.64,0.00019178,2]
[347263384,1735644741491,-507.22991826,0.00019178,2]
[347263385,1735644741516,-678.64,0.00019178,2]
[347263386,1735644741540,-678.64,0.00019178,2]
[347263387,1735644741568,-678.64,0.00019178,2]
[347263388,1735644741591,-678.64,0.00019178,2]
[347263389,1735644741615,-500.0,0.00019178,2]
[347263390,1735644741640,-678.64,0.00019178,2]
[347263391,1735644741665,-678.64,0.00019178,2]
[347263392,1735644741689,-678.64,0.00019178,2]
[347263393,1735644741711,-678.64,0.00019178,2]
[347263394,1735644741734,-678.64,0.00019178,2]
[347263395,1735644741757,-678.64,0.00019178,2]
[347263396,1735644741780,-500.0,0.00019178,2]
[347263397,1735644741803,-678.64,0.00019178,2]
[347263398,1735644741828,-500.0,0.00019178,2]
[347263399,1735644741851,-678.85,0.00019178,2]
[347263400,1735644741874,-500.0,0.00019178,2]
[347263401,1735644741895,-500.0,0.00019178,2]
[347263402,1735644741917,-500.0,0.00019178,2]
[347263403,1735644741938,-500.0,0.00019178,2]
[347263404,1735644741960,-606.8,0.00019178,2]
[347263405,1735644741982,-500.0,0.00019178,2]
[347263406,1735644742005,-500.0,0.00019178,2]
[347263407,1735644742028,-500.0,0.00019178,2]
[347263408,1735644742052,-500.0,0.00019178,2]
[347263409,1735644742080,-500.0,0.00019178,2]
[347263410,1735644742104,-717.47,0.00019178,2]
[347263411,1735644742126,-500.0,0.00019178,2]
[347263412,1735644742151,-500.0,0.00019178,2]
[347263413,1735644742172,-500.0,0.00019178,2]
[347263414,1735644742197,-500.0,0.00019178,2]
[347263415,1735644742220,-500.0,0.00019178,2]
[347263416,1735644742243,-589.31,0.00019178,2]
[347263417,1735644742264,-500.0,0.00019178,2]
[347263418,1735644742286,-500.0,0.00019178,2]
[347263419,1735644742309,-500.0,0.00019178,2]
[347263420,1735644742333,-500.0,0.00019178,2]
[347263421,1735644742355,-504.86775861,0.00019178,2]
[347263422,1735644742382,-678.23,0.00019178,2]
[347263423,1735644742407,-627.71,0.00019178,2]
[347263424,1735644742429,-500.0,0.00019178,2]
[347263425,1735644742452,-500.0,0.00019178,2]
[347263426,1735644742475,-500.0,0.00019178,2]
[347263427,1735644742499,-1962.8,0.00019178,2]
[347263428,1735644742524,-14994.95,0.00019178,2]
[347263429,1735644742548,-500.0,0.00019178,2]
[347263430,1735644742573,-500.0,0.00019178,2]
[347263431,1735644742597,-683.73,0.00019178,2]
[347263432,1735644742620,-500.0,0.00019178,2]
[347263433,1735644742648,-500.0,0.00019178,2]
[347263434,1735644742674,-500.0,0.00019178,2]
[347263435,1735644742765,-500.0,0.00019178,2]
[347263436,1735644742788,-500.0,0.00019178,2]
[347263437,1735644742813,-169.513097,0.00019178,2]
[347263438,1735644742836,-500.0,0.00019452,3]
[347263439,1735644742862,-500.0,0.00019452,3]
[347263440,1735644742886,-500.0,0.00019452,3]
[347263441,1735644742908,-396.4,0.00019452,2]
[347263442,1735644742930,-500.0,0.00019452,3]
[347263443,1735644742953,-606.8,0.00019452,3]
[347263444,1735644742977,-523.28887775,0.00019452,3]
[347263445,1735644743002,-500.0,0.00019452,3]
[347263446,1735644743030,-717.47,0.00019452,3]
[347263447,1735644743057,-500.0,0.00019452,3]
[347263448,1735644743090,-500.0,0.00019452,3]
[347263449,1735644743117,-678.23,0.00019452,3]
[347263450,1735644743143,-627.71,0.00019452,3]
[347263451,1735644743172,-1612.98292758,0.00019452,3]
[347263452,1735644862931,500.0,0.00022104,120]
[347263454,1735645017032,1000.0,0.00025,120]
[347263455,1735645034760,10000.0,0.000171,90]
[347263456,1735645069480,603.0,0.00025,120]
[347270128,1735645756137,-287.243881,0.00013422,2]
[347270129,1735645756157,-287.243881,0.00013558,2]
[347270130,1735645756178,-66.45294159,0.00013973,2]
[347270137,1735645833353,-220.79093941,0.00013695,2]
[347270138,1735645833362,-220.79093941,0.00013833,2]
[347270139,1735645833373,-220.79093941,0.00013973,2]
[347270140,1735645833477,-1018.95392116,0.00014986,2]
[347270141,1735645833488,-1018.95392116,0.00014986,2]
[347270142,1735645833498,-1018.95392116,0.00015,2]
[347270143,1735645833507,-4238.3257284,0.00015617,2]
[347270144,1735645833517,-163.04571342,0.00015782,2]
[347270145,1735645833526,-609.37131789,0.0001588,2]
[347270146,1735645833536,-500.0,0.0001588,2]
[347270147,1735645833545,-295.95331053,0.0001588,2]
[347270148,1735645833555,-500.0,0.0001588,2]
[347270149,1735645833565,-570.53863492,0.0001588,2]
[347270150,1735645833575,-300.0,0.00015881,2]
[347270151,1735645833585,-8803.26464962,0.00015881,2]
[347270152,1735645833605,-20017.74858,0.00015881,2]
[347270153,1735645833617,-21092.3060334,0.00015881,2]
[347270154,1735645838342,-220.79093941,0.00013558,2]
[347270155,1735645838351,-500.0,0.0001588,2]
[347270156,1735645838361,-500.0,0.0001588,2]
[347270157,1735645838369,-500.0,0.0001588,2]
[347270158,1735645838381,-500.0,0.0001588,2]
[347270159,1735645838391,-500.0,0.0001588,2]
[347270160,1735645838400,-500.0,0.0001588,2]
[347270161,1735645838409,-500.0,0.0001588,2]
[347270162,1735645838419,-500.0,0.0001588,2]
[347270163,1735645838428,-500.0,0.0001588,2]
[347270164,1735645838438,-500.0,0.0001588,2]
[347270165,1735645838448,-500.0,0.0001588,2]
[347270166,1735645838458,-500.0,0.0001588,2]
[347270167,1735645838468,-500.0,0.0001588,2]
[347270168,1735645838478,-160.53198433,0.0001588,2]
[347270169,1735645838488,-500.0,0.0001588,2]
[347270170,1735645838497,-500.0,0.0001588,2]
[347270171,1735645838508,-500.0,0.0001588,2]
[347270172,1735645838517,-500.0,0.0001588,2]
[347270173,1735645838527,-500.0,0.0001588,2]
[347270174,1735645838537,-500.0,0.0001588,2]
[347270175,1735645838547,-500.0,0.0001588,2]
[347270176,1735645838556,-500.0,0.0001588,2]
[347270177,1735645838566,-500.0,0.0001588,2]
[347270178,1735645838575,-518.99088258,0.0001588,2]
[347270179,1735645838585,-500.0,0.0001588,2]
[347270180,1735645838594,-500.0,0.0001588,2]
[347270181,1735645838604,-339.0849747,0.0001588,2]
[347270182,1735645838613,-500.0,0.0001588,2]
[347270183,1735645838622,-500.0,0.0001588,2]
[347270184,1735645838631,-500.0,0.0001588,2]
[347270185,1735645838641,-243.02260406,0.0001588,2]
[347270186,1735645838651,-500.0,0.0001588,2]
[347270187,1735645838660,-500.0,0.0001588,2]
[347270188,1735645838670,-500.0,0.0001588,2]
[347270189,1735645838679,-500.0,0.0001588,2]
[347270190,1735645838690,-500.0,0.0001588,2]
[347270191,1735645838699,-500.0,0.0001588,2]
[347270192,1735645838709,-500.0,0.0001588,2]
[347270193,1735645838719,-500.0,0.0001588,2]
[347270194,1735645838729,-500.0,0.0001588,2]
[347270195,1735645838738,-500.0,0.0001588,2]
[347270196,1735645838748,-500.0,0.0001588,2]
[347270197,1735645838758,-500.0,0.0001588,2]
[347270198,1735645838768,-500.0,0.0001588,2]
[347270199,1735645838778,-500.0,0.0001588,2]
[347270200,1735645838788,-500.0,0.0001588,2]
[347270201,1735645838797,-500.0,0.0001588,2]
[347270202,1735645838807,-571.57408593,0.0001588,2]
[347270203,1735645838816,-500.0,0.0001588,2]
[347270204,1735645838825,-500.0,0.0001588,2]
[347270205,1735645838834,-500.0,0.0001588,2]
[347270206,1735645838843,-500.0,0.0001588,2]
[347270207,1735645838853,-500.0,0.0001588,2]
[347270208,1735645838863,-500.0,0.0001588,2]
[347270209,1735645838872,-500.0,0.0001588,2]
[347270210,1735645838881,-500.0,0.0001588,2]
[347270212,1735645838890,-345.31626621,0.0001588,2]
[347270213,1735645838900,-500.0,0.0001588,2]
[347270215,1735645838910,-500.0,0.0001588,2]
[347270217,1735645838919,-500.0,0.0001588,2]
[347270219,1735645838929,-500.0,0.0001588,2]
[347270221,1735645838939,-500.0,0.0001588,2]
[347270223,1735645838948,-500.0,0.0001588,2]
[347270225,1735645838958,-500.0,0.0001588,2]
[347270227,1735645838968,-500.0,0.0001588,2]
[347270229,1735645838977,-500.0,0.0001588,2]
[347270230,1735645838987,-500.0,0.0001588,2]
[347270231,1735645838997,-500.0,0.0001588,2]
[347270232,1735645839006,-500.0,0.0001588,2]
[347270233,1735645839015,-500.0,0.0001588,2]
[347270234,1735645839025,-500.0,0.0001588,2]
[347270235,1735645839035,-500.0,0.0001588,2]
[347270236,1735645839044,-500.0,0.0001588,2]
[347270237,1735645839052,-500.0,0.0001588,2]
[347270238,1735645839061,-500.0,0.0001588,2]
[347270239,1735645839071,-500.0,0.0001588,2]
[347270240,1735645839081,-500.0,0.0001588,2]
[347270241,1735645839090,-500.0,0.0001588,2]
[347270242,1735645839100,-500.0,0.0001588,2]
[347270243,1735645839110,-500.0,0.0001588,2]
[347270244,1735645839202,-500.0,0.0001588,2]
[347270245,1735645839212,-500.0,0.0001588,2]
[347270246,1735645839221,-730347.96592053,0.00015881,2]
[347270247,1735645839233,-6070.71481645,0.00015881,2]
[347270248,1735645839243,-2097.3759321,0.00015882,2]
[347270249,1735645839253,-1397.4484566,0.00015882,2]
[347270250,1735645839263,-500.0,0.00016438,2]
[347270251,1735645839272,-500.0,0.00016438,2]
[347270252,1735645839283,-500.0,0.00016438,2]
[347270253,1735645839293,-500.0,0.00016438,2]